bitfinex/quotes_SOLUSD_20251201
["timestamp","ask_amount","ask_price","bid_price","bid_amount"]
[1764565753201,24.9362702,126.37,126.34,0.65]
[1764565754519,19.77905244,126.4,126.34,0.65]
[1764565754520,12.60632528,126.4,126.36,12.60632528]
[1764565754820,8.80994492,126.39,126.36,12.60632528]
[1764565755032,8.80994492,126.39,126.37,0.65]
[1764565755892,8.80994492,126.39,126.37,8.5631944]
[1764565756093,8.80994492,126.39,126.37,0.65]
[1764565756293,21.4162702,126.39,126.37,0.65]
[1764565756722,8.80994492,126.39,126.37,0.65]
[1764565757018,8.80994492,126.39,126.37,8.56324855]
[1764565757217,16.32632528,126.41,126.38,0.65]
[1764565757514,3.72,126.41,126.38,0.65]
[1764565758217,12.60632528,126.39,126.37,16.308864]
[1764565758596,12.60632528,126.39,126.37,16.958864]
[1764565758797,12.60632528,126.38,126.37,0.65]
[1764565758998,16.12632528,126.39,126.36,8.56387846]
[1764565759419,16.12632528,126.39,126.36,7.91387846]
[1764565759720,16.12632528,126.39,126.37,0.65]
[1764565760622,3.52,126.39,126.37,0.65]
[1764565764129,16.12632528,126.39,126.37,0.65]
[1764565765118,0.2,126.41,126.37,37.47807919]
[1764565765433,0.2,126.41,126.38,0.66]
[1764565765726,0.2,126.41,126.38,13.26632528]
[1764565766231,0.2,126.41,126.39,0.72]
[1764565766417,0.2,126.41,126.39,8.63173217]
[1764565767030,0.2,126.41,126.4,0.72]
[1764565768129,0.2,126.41,126.4,13.32632528]
[1764565768306,0.2,126.41,126.4,21.23771768]
[1764565768503,16.91834655,126.45,126.4,37.54658168]
[1764565768706,12.60632528,126.44,126.41,0.72]
[1764565769707,33.04467183,126.45,126.41,21.23676882]
[1764565770235,3.72,126.45,126.42,13.32632528]
[1764565770625,3.72,126.45,126.43,0.72]
[1764565771931,16.32632528,126.45,126.41,20.51709183]
[1764565772134,16.32632528,126.45,126.42,0.72]
[1764565772431,8.2306817,126.45,126.42,0.72]
[1764565773430,3.72,126.45,126.42,5.2306817]
[1764565773614,3.72,126.45,126.43,7.90951514]
[1764565773932,3.72,126.45,126.43,13.14019684]
[1764565774122,0.2,126.45,126.44,5.2306817]
[1764565774327,0.2,126.45,126.44,0.72]
[1764565774511,0.2,126.45,126.43,16.308864]
[1764565774829,0.2,126.45,126.44,5.2306817]
[1764565775817,0.2,126.45,126.44,13.13957129]
[1764565782537,0.2,126.46,126.44,32.91179526]
[1764565782717,0.2,126.46,126.45,4.24]
[1764565782922,0.2,126.46,126.45,8.7506817]
[1764565783524,0.2,126.46,126.45,16.65894583]
[1764565784436,1e-08,126.46,126.45,16.65894583]
[1764565784734,1e-08,126.46,126.45,19.82638455]
[1764565786636,1e-08,126.46,126.45,16.65894583]
[1764565786852,1e-08,126.46,126.45,29.44780983]
[1764565787733,1e-08,126.46,126.45,13.13894583]
[1764565789747,1e-08,126.46,126.45,8.62826413]
[1764565789917,1e-08,126.46,126.45,13.13894583]
[1764565790343,1e-08,126.46,126.45,11.5114948]
[1764565790838,1e-08,126.46,126.45,27.8203588]
[1764565791247,1e-08,126.46,126.45,19.91209467]
[1764565791448,1e-08,126.46,126.45,27.8203588]
[1764565792217,1e-08,126.46,126.45,11.5114948]
[1764565794215,0.2,126.48,126.47,16.308864]
[1764565794436,0.2,126.48,126.47,25.31209467]
[1764565794648,0.2,126.48,126.47,26.03209467]
[1764565795438,0.2,126.48,126.47,33.93910819]
[1764565795851,0.2,126.52,126.47,33.93910819]
[1764565795852,0.2,126.52,126.48,0.67]
[1764565796016,0.2,126.52,126.51,19.19209467]
[1764565796431,0.2,126.52,126.51,19.86209467]
[1764565796944,0.2,126.52,126.51,23.38209467]
[1764565797545,0.2,126.52,126.51,31.28660814]
[1764565798926,1e-08,126.52,126.51,31.28660814]
[1764565799126,0.2,126.54,126.51,51.04789183]
[1764565799326,0.2,126.54,126.53,2.88323067]
[1764565799528,0.2,126.54,126.53,6.40323067]
[1764565799728,0.2,126.54,126.53,7.07323067]
[1764565800337,0.2,126.54,126.53,14.97649471]
[1764565800646,0.2,126.57,126.56,16.308864]
[1764565800845,0.2,126.57,126.56,24.81209467]
[1764565801141,0.2,126.57,126.56,18.408864]
[1764565801442,0.2,126.57,126.56,2.1]
[1764565801944,0.2,126.57,126.56,21.29209467]
[1764565802249,0.2,126.57,126.56,10.00139064]
[1764565802929,0.6,126.57,126.56,10.00139064]
[1764565804948,3.48323067,126.57,126.54,46.0666842]
[1764565805347,0.6,126.57,126.54,46.84991487]
[1764565806250,0.4,126.56,126.55,2.88323067]
[1764565806845,0.4,126.56,126.53,7.90310794]
[1764565806846,3.28323067,126.56,126.53,7.90310794]
[1764565807234,8.10123683,126.57,126.54,2.88323067]
[1764565807433,0.6,126.57,126.55,2.88323067]
[1764565807649,0.2,126.57,126.56,2.88323067]
[1764565808228,0.2,126.57,126.55,2.88323067]
[1764565808436,0.2,126.57,126.56,2.88323067]
[1764565808755,0.2,126.57,126.56,10.78462131]
[1764565811850,0.2,126.57,126.56,13.55462131]
[1764565812068,0.2,126.57,126.56,10.00139064]
[1764565812347,0.2,126.59,126.58,16.308864]
[1764565812559,0.2,126.59,126.58,22.71209467]
[1764565812728,0.2,126.61,126.58,34.91501735]
[1764565813052,0.2,126.61,126.6,30.72501735]
[1764565813253,0.2,126.61,126.6,34.24501735]
[1764565813557,0.2,126.63,126.6,31.39501735]
[1764565813735,0.2,126.63,126.62,10.78087717]
[1764565814362,0.2,126.63,126.62,16.55424792]
[1764565815553,1e-08,126.63,126.62,16.55424792]
[1764565815943,0.2,126.65,126.62,16.55424792]
[1764565816153,0.2,126.65,126.63,12.17660142]
[1764565816354,0.2,126.65,126.63,20.16320284]
[1764565816559,0.2,126.65,126.64,32.95206684]
[1764565817936,0.2,126.65,126.64,40.84846608]
[1764565819160,0.2,126.65,126.64,28.48546542]
[1764565819366,0.2,126.65,126.64,44.36846608]
[1764565819733,0.2,126.65,126.64,36.47206684]
[1764565819931,0.2,126.65,126.64,24.96546542]
[1764565820157,0.2,126.65,126.63,7.89662994]
[1764565820554,0.2,126.65,126.64,24.29546542]
[1764565820744,0.2,126.65,126.64,7.98660142]
[1764565821255,0.6,126.65,126.63,16.308864]
[1764565821457,0.1,126.65,126.63,16.308864]
[1764565821838,7.89560803,126.66,126.63,24.29546542]
[1764565823273,8.09477543,126.67,126.64,7.98660142]
[1764565823436,8.19477543,126.67,126.64,7.98660142]
[1764565823834,8.09477543,126.67,126.64,7.98660142]
[1764565824032,0.2,126.67,126.64,0.67]
[1764565824251,0.2,126.67,126.65,7.98660142]
[1764565824563,0.2,126.67,126.64,8.65660142]
[1764565824933,0.2,126.67,126.65,7.98660142]
[1764565825136,0.2,126.67,126.64,15.88291713]
[1764565825964,8.08660142,126.66,126.62,7.98660142]
[1764565826145,15.98196633,126.66,126.62,7.89754442]
[1764565826460,0.1,126.65,126.62,16.308864]
[1764565827063,0.1,126.65,126.62,24.29546542]
[1764565827358,7.89536491,126.66,126.62,16.308864]
[1764565827567,15.98196633,126.66,126.62,24.29546542]
[1764565827937,0.1,126.65,126.62,24.29546542]
[1764565828342,15.98248398,126.65,126.62,16.308864]
[1764565828746,7.98660142,126.64,126.6,7.89870479]
[1764565828946,8.08660142,126.64,126.6,32.19417021]
[1764565829161,8.08660142,126.64,126.6,35.19417021]
[1764565829343,0.1,126.63,126.6,26.59546542]
[1764565829554,8.08660142,126.63,126.6,18.608864]
[1764565829863,16.79654634,126.64,126.6,8.68660142]
[1764565830040,8.90994492,126.64,126.61,7.98660142]
[1764565830568,24.79333202,126.64,126.6,7.98660142]
[1764565831368,7.89592597,126.65,126.62,7.98660142]
[1764565832155,7.99592597,126.65,126.61,0.7]
[1764565832364,0.1,126.65,126.61,16.5846811]
[1764565832741,16.79654634,126.66,126.62,7.98660142]
[1764565832946,3.82,126.67,126.64,24.29546542]
[1764565832947,0.2,126.67,126.64,24.29546542]
[1764565833141,0.2,126.67,126.65,7.98660142]
[1764565833368,0.2,126.67,126.66,7.98660142]
[1764565833556,0.2,126.67,126.66,8.68660142]
[1764565834573,0.2,126.67,126.66,16.58175379]
[1764565837476,3.53737815,126.67,126.66,8.68660142]
[1764565838150,3.53737815,126.67,126.66,16.58175379]
[1764565838553,3.53737815,126.67,126.66,18.88175379]
[1764565840341,3.53737815,126.67,126.66,41.57360972]
[1764565840547,0.2,126.68,126.66,25.26474572]
[1764565840768,0.2,126.68,126.67,7.09391867]
[1764565840955,0.2,126.68,126.67,9.39391867]
[1764565842072,0.2,126.68,126.67,17.28844776]
[1764565842572,0.2,126.68,126.67,22.39528133]
[1764565845285,0.2,126.68,126.67,22.108864]
[1764565845776,0.2,126.68,126.67,19.808864]
[1764565845972,0.89,126.68,126.67,3.5]
[1764565846177,0.2,126.68,126.67,3.5]
[1764565846378,0.2,126.68,126.67,19.808864]
[1764565847863,0.2,126.68,126.67,16.308864]
[1764565848975,0.2,126.68,126.67,17.008864]
[1764565849277,0.2,126.68,126.67,28.48961624]
[1764565849856,0.2,126.68,126.67,32.88414533]
[1764565850057,0.2,126.68,126.67,16.308864]
[1764565850252,8.7840412,126.68,126.63,0.7]
[1764565850561,8.7840412,126.68,126.64,4.2]
[1764565850769,8.7840412,126.68,126.66,16.308864]
[1764565851081,0.69,126.67,126.66,16.308864]
[1764565851875,0.69,126.67,126.64,4.2]
[1764565851876,0.69,126.67,126.65,16.308864]
[1764565853159,8.58477239,126.67,126.65,16.308864]
[1764565855682,0.69,126.67,126.65,16.308864]
[1764565856385,8.5846517,126.67,126.65,16.308864]
[1764565856777,7.8946517,126.67,126.65,16.308864]
[1764565856984,0.72,126.66,126.63,16.308864]
[1764565857187,0.72,126.66,126.63,16.988864]
[1764565857481,20.61247849,126.68,126.64,16.988864]
[1764565857674,0.72,126.67,126.64,16.308864]
[1764565858788,0.72,126.67,126.64,16.988864]
[1764565859376,40.34724325,126.68,126.65,13.19829407]
[1764565859377,0.2,126.68,126.65,13.19829407]
[1764565859587,0.2,126.68,126.65,21.0940549]
[1764565859787,0.2,126.68,126.65,8.57576083]
[1764565859986,0.2,126.68,126.67,16.308864]
[1764565860391,0.2,126.68,126.67,29.50715807]
[1764565861775,0.2,126.68,126.67,37.40168716]
[1764565862096,0.2,126.68,126.67,24.88339309]
[1764565862391,0.2,126.68,126.67,37.40168716]
[1764565863981,0.2,126.68,126.67,24.20339309]
[1764565864182,0.2,126.68,126.67,24.88339309]
[1764565864381,0.2,126.68,126.67,37.40168716]
[1764565865094,0.2,126.68,126.67,39.70168716]
[1764565865678,0.2,126.68,126.67,26.50339309]
[1764565866193,0.2,126.68,126.67,27.18339309]
[1764565866394,0.2,126.68,126.67,39.70168716]
[1764565867672,0.2,126.68,126.67,26.50339309]
[1764565868005,0.2,126.68,126.67,43.20168716]
[1764565868496,0.2,126.68,126.67,30.00339309]
[1764565869072,0.2,126.68,126.67,27.70339309]
[1764565869473,0.2,126.68,126.67,28.38339309]
[1764565869690,0.2,126.68,126.67,40.90168716]
[1764565870497,0.2,126.68,126.67,33.00715807]
[1764565870702,0.2,126.68,126.67,3.5]
[1764565871199,0.2,126.68,126.67,16.01829407]
[1764565871995,0.2,126.68,126.67,16.69829407]
[1764565872495,0.2,126.68,126.67,12.07452909]
[1764565872701,0.2,126.68,126.67,40.90168716]
[1764565872875,0.2,126.68,126.67,20.488864]
[1764565873203,0.2,126.68,126.67,33.00715807]
[1764565873501,0.92,126.68,126.67,3.5]
[1764565873702,0.2,126.68,126.67,19.808864]
[1764565873907,0.2,126.68,126.67,4.18]
[1764565874097,0.2,126.68,126.67,3.5]
[1764565875399,8.0939059,126.68,126.66,16.308864]
[1764565875600,0.92,126.68,126.66,16.308864]
[1764565875799,0.2,126.68,126.66,16.988864]
[1764565875994,0.2,126.68,126.67,8.57452909]
[1764565876998,0.2,126.68,126.67,2.98]
[1764565877205,0.2,126.68,126.67,2.3]
[1764565878289,0.2,126.68,126.67,2.98]
[1764565879094,0.2,126.68,126.67,10.87452909]
[1764565880104,0.2,126.68,126.67,10.19452909]
[1764565882811,0.2,126.68,126.67,10.87452909]
[1764565883109,0.2,126.68,126.67,10.19452909]
[1764565883290,0.2,126.68,126.67,10.87452909]
[1764565883901,0.2,126.68,126.67,23.39282316]
[1764565885300,0.2,126.68,126.67,10.87452909]
[1764565886614,0.2,126.68,126.67,2.3]
[1764565886818,0.91,126.68,126.67,2.3]
[1764565887835,5.40128774,126.68,126.67,2.3]
[1764565890018,0.2,126.68,126.67,2.3]
[1764565890201,0.2,126.68,126.67,2.95]
[1764565890715,0.2,126.68,126.67,2.3]
[1764565893119,13.29519364,126.68,126.64,2.3]
[1764565893300,4.49128774,126.67,126.64,2.3]
[1764565893496,5.20128774,126.67,126.64,2.3]
[1764565893717,0.71,126.67,126.64,2.3]
[1764565894300,0.71,126.67,126.64,10.84625246]
[1764565894532,0.2,126.68,126.65,0.65]
[1764565895026,0.91,126.68,126.65,0.65]
[1764565895413,0.2,126.68,126.65,5.14128774]
[1764565895612,0.2,126.68,126.66,16.308864]
[1764565896017,0.91,126.68,126.66,16.308864]
[1764565896315,0.91,126.68,126.64,2.3]
[1764565896316,4.49128774,126.67,126.64,2.3]
[1764565896510,4.49128774,126.65,126.6,2.3]
[1764565896821,4.49128774,126.63,126.6,2.3]
[1764565897014,4.49128774,126.64,126.61,16.308864]
[1764565897423,0.71,126.63,126.61,16.308864]
[1764565897917,13.0984171,126.63,126.58,5.8]
[1764565898122,4.49128774,126.62,126.58,6.45]
[1764565898425,5.20128774,126.62,126.58,28.3590055]
[1764565898828,0.71,126.62,126.58,28.3590055]
[1764565899030,4.49128774,126.63,126.59,0.65]
[1764565899238,13.09770232,126.64,126.59,5.14128774]
[1764565899437,13.09770232,126.64,126.59,21.45015174]
[1764565899636,5.20128774,126.64,126.6,0.65]
[1764565899818,13.09774234,126.64,126.6,0.65]
[1764565900410,12.38774234,126.64,126.6,13.03986803]
[1764565900610,13.09774234,126.64,126.6,13.03986803]
[1764565901036,8.6064546,126.64,126.6,13.03986803]
[1764565901238,13.09774234,126.64,126.6,13.03986803]
[1764565903024,13.09774234,126.64,126.6,15.33986803]
[1764565905836,13.09774234,126.64,126.6,10.84858029]
[1764565906722,13.09774234,126.64,126.61,0.65]
[1764565907045,7.8964546,126.64,126.61,2.95]
[1764565907225,8.6064546,126.64,126.61,2.95]
[1764565909449,13.09774234,126.64,126.61,2.3]
[1764565909648,5.20128774,126.63,126.61,2.3]
[1764565909844,13.09774234,126.64,126.61,2.95]
[1764565910019,8.6064546,126.64,126.61,2.95]
[1764565910218,13.09774234,126.64,126.61,2.95]
[1764565910820,12.38774234,126.64,126.61,2.3]
[1764565911029,7.8964546,126.64,126.62,0.65]
[1764565911329,7.8964546,126.64,126.61,2.3]
[1764565911535,7.8964546,126.64,126.61,2.95]
[1764565912534,0.71,126.63,126.61,2.3]
[1764565912847,11.4841909,126.64,126.61,0.65]
[1764565913146,2.8777363,126.62,126.6,2.3]
[1764565913649,3.5877363,126.63,126.6,2.3]
[1764565914535,11.48487965,126.63,126.6,2.3]
[1764565915646,3.5877363,126.63,126.6,10.19865928]
[1764565915848,2.8777363,126.64,126.61,0.72]
[1764565916032,11.47351205,126.65,126.61,0.72]
[1764565916344,3.5777363,126.64,126.61,0.72]
[1764565916847,3.5777363,126.64,126.6,10.19865928]
[1764565917047,3.5777363,126.64,126.6,10.91865928]
[1764565917246,10.77421052,126.64,126.6,10.91865928]
[1764565917547,2.8777363,126.61,126.56,6.42736451]
[1764565917848,2.8777363,126.57,126.54,2.4]
[1764565918026,2.8777363,126.57,126.56,16.308864]
[1764565918223,3.5777363,126.57,126.56,16.308864]
[1764565918428,0.7,126.57,126.56,16.308864]
[1764565919136,3.5777363,126.57,126.54,2.4]
[1764565919343,11.47867633,126.57,126.54,2.4]
[1764565919755,3.5777363,126.57,126.54,18.708864]
[1764565920446,2.8777363,126.55,126.54,0.1]
[1764565920648,3.5777363,126.56,126.54,0.1]
[1764565920848,2.8777363,126.55,126.54,0.1]
[1764565921151,3.5777363,126.55,126.54,0.1]
[1764565921950,20.28969623,126.55,126.54,0.1]
[1764565922742,31.80064143,126.55,126.54,0.1]
[1764565922942,20.28969623,126.55,126.54,0.1]
[1764565923633,31.80064143,126.55,126.54,0.1]
[1764565923829,8.80994492,126.54,126.52,0.1]
[1764565924032,8.80994492,126.52,126.47,0.1]
[1764565924244,6.3777363,126.53,126.41,2.51569026]
[1764565924245,8.80994492,126.47,126.41,8.12603153]
[1764565924447,2.8777363,126.45,126.41,8.12603153]
[1764565924654,2.8777363,126.45,126.42,16.308864]
[1764565924854,4.12,126.46,126.42,16.308864]
[1764565924855,3.5,126.46,126.42,19.9066003]
[1764565925032,3.5,126.46,126.41,8.12603153]
[1764565925033,3.5,126.48,126.44,19.1866003]
[1764565925233,3.5,126.48,126.44,16.308864]
[1764565925453,3.5,126.48,126.45,3.5977363]
[1764565925656,3.5,126.48,126.45,0.72]
[1764565926255,3.5,126.48,126.45,27.81476658]
[1764565926647,3.4977363,126.49,126.45,27.81476658]
[1764565928059,8.52561892,126.5,126.47,2.8777363]
[1764565928248,12.02561892,126.5,126.47,2.8777363]
[1764565928561,12.02561892,126.5,126.47,8.01176771]
[1764565928745,7.90561892,126.5,126.48,8.01176771]
[1764565928946,12.02561892,126.5,126.48,8.01176771]
[1764565929675,12.02561892,126.5,126.48,10.31176771]
[1764565929971,20.21466579,126.51,126.48,10.31176771]
[1764565930141,12.92994492,126.51,126.49,8.01176771]
[1764565930340,12.92994492,126.51,126.48,10.31176771]
[1764565930541,20.21431019,126.52,126.48,11.03176771]
[1764565930732,20.83431019,126.52,126.48,11.03176771]
[1764565930938,0.62,126.51,126.48,10.31176771]
[1764565931134,8.63176771,126.51,126.48,2.3]
[1764565931656,8.80994492,126.49,126.48,2.3]
[1764565932764,16.71570822,126.49,126.48,2.3]
[1764565932967,28.84747593,126.49,126.42,8.01176771]
[1764565933169,8.80994492,126.46,126.43,24.32063171]
[1764565933475,12.30994492,126.46,126.43,24.32063171]
[1764565933764,12.92994492,126.46,126.43,24.32063171]
[1764565934071,3.5,126.49,126.46,16.308864]
[1764565934253,12.30994492,126.49,126.47,8.01176771]
[1764565936374,3.5,126.51,126.48,8.73176771]
[1764565936668,3.5,126.51,126.49,8.01176771]
[1764565937069,9.42994492,126.5,126.48,8.01176771]
[1764565937251,17.44171263,126.5,126.46,8.01176771]
[1764565937569,8.80994492,126.48,126.45,16.308864]
[1764565937765,20.32171263,126.48,126.45,16.308864]
[1764565937964,20.94171263,126.48,126.45,16.308864]
[1764565938165,20.83672286,126.48,126.45,16.308864]
[1764565939146,8.80994492,126.49,126.46,8.01176771]
[1764565939353,12.30994492,126.49,126.47,8.01176771]
[1764565939555,12.92994492,126.49,126.47,8.01176771]
[1764565940163,12.30994492,126.49,126.47,8.01176771]
[1764565940672,11.40519736,126.5,126.48,8.01176771]
[1764565941562,11.40519736,126.5,126.47,8.73176771]
[1764565941770,12.02519736,126.5,126.47,8.01176771]
[1764565941971,12.02519736,126.5,126.47,8.73176771]
[1764565942169,7.90519736,126.5,126.47,8.73176771]
[1764565942371,3.5,126.5,126.49,8.01176771]
[1764565942775,7.90451347,126.51,126.47,18.93859805]
[1764565942959,12.02451347,126.51,126.48,8.01176771]
[1764565946780,11.40451347,126.51,126.48,8.68176771]
[1764565946961,8.80994492,126.5,126.47,2.3]
[1764565947166,9.42994492,126.5,126.47,10.98176771]
[1764565948182,16.7153384,126.5,126.47,10.98176771]
[1764565948376,16.7153384,126.5,126.47,5.85401915]
[1764565948679,16.7153384,126.5,126.48,2.88401915]
[1764565951386,16.7153384,126.5,126.48,5.18401915]
[1764565951590,3.5,126.51,126.49,3.55401915]
[1764565951762,4.12,126.51,126.48,13.09028461]
[1764565951963,4.12,126.51,126.48,13.76028461]
[1764565952279,3.5,126.51,126.48,13.76028461]
[1764565952673,3.5,126.51,126.49,2.88401915]
[1764565952987,8.80994492,126.52,126.5,2.88401915]
[1764565953176,3.5,126.51,126.5,5.18401915]
[1764565953560,8.80994492,126.53,126.5,5.85401915]
[1764565953760,12.30994492,126.54,126.52,2.88401915]
[1764565954191,3.5,126.54,126.53,2.88401915]
[1764565956868,3.5,126.54,126.52,3.55401915]
[1764565957876,3.5,126.54,126.51,16.308864]
[1764565958084,3.5,126.54,126.53,2.88401915]
[1764565958791,3.5,126.54,126.52,3.55401915]
[1764565959377,3.5,126.54,126.53,2.88401915]
[1764565959574,16.71200963,126.55,126.53,2.88401915]
[1764565959775,20.21200963,126.55,126.53,2.88401915]
[1764565960277,20.21200963,126.55,126.53,5.18401915]
[1764565962579,0.62,126.54,126.53,2.3]
[1764565962783,8.80994492,126.53,126.51,16.308864]
[1764565963276,6.38401915,126.54,126.5,2.3]
[1764565963480,9.42994492,126.52,126.49,21.49288315]
[1764565963676,3.5,126.51,126.49,21.49288315]
[1764565963999,3.5,126.51,126.5,19.19288315]
[1764565964296,3.5,126.54,126.5,19.86288315]
[1764565964473,3.5,126.54,126.52,2.88401915]
[1764565964675,11.40271304,126.54,126.52,2.88401915]
[1764565965884,11.40271304,126.54,126.52,3.55401915]
[1764565966292,12.31396407,126.53,126.48,10.20594378]
[1764565966496,2.88401915,126.52,126.48,7.90594378]
[1764565966799,8.80994492,126.53,126.5,2.88401915]
[1764565966975,12.30994492,126.53,126.51,2.88401915]
[1764565967498,12.92994492,126.53,126.5,2.88401915]
[1764565967695,12.30994492,126.53,126.5,2.88401915]
[1764565967997,20.21327024,126.53,126.5,3.55401915]
[1764565968300,20.83327024,126.53,126.49,11.45944072]
[1764565968482,0.62,126.52,126.49,7.90542157]
[1764565968803,3.50401915,126.52,126.49,7.90542157]
[1764565968974,3.50401915,126.52,126.46,7.9070922]
[1764565968975,11.69396407,126.5,126.46,7.9070922]
[1764565969175,11.69396407,126.48,126.43,17.89377639]
[1764565969376,3.5,126.47,126.44,0.67]
[1764565969872,3.5,126.47,126.44,3.55401915]
[1764565970094,11.40709574,126.47,126.44,3.55401915]
[1764565970292,11.40709574,126.47,126.45,0.67]
[1764565971088,3.5,126.47,126.45,0.67]
[1764565971580,11.40710396,126.47,126.45,2.97]
[1764565972082,14.91112311,126.47,126.45,2.3]
[1764565972288,8.80994492,126.46,126.43,3.55401915]
[1764565973604,8.80994492,126.46,126.43,11.46350332]
[1764565973801,8.80994492,126.46,126.44,0.67]
[1764565974009,3.5,126.47,126.45,2.88401915]
[1764565974302,3.5,126.47,126.46,0.67]
[1764565975486,3.5,126.47,126.46,13.08533748]
[1764565975999,3.5,126.47,126.46,5.17769871]
[1764565976180,3.5,126.47,126.46,0.67]
[1764565976685,11.40577078,126.49,126.46,0.67]
[1764565978221,11.40577078,126.49,126.46,10.87763402]
[1764565978691,11.40577078,126.49,126.46,2.97]
[1764565979090,3.5,126.49,126.47,0.66]
[1764565979592,0.62,126.52,126.48,4.50769871]
[1764565979796,12.30994492,126.51,126.48,6.80769871]
[1764565979999,12.30994492,126.51,126.48,7.46769871]
[1764565980201,12.30994492,126.51,126.48,2.96]
[1764565980417,7.90427537,126.52,126.49,5.16769871]
[1764565980707,11.40347601,126.53,126.5,4.50769871]
[1764565980907,11.40347601,126.53,126.51,4.50769871]
[1764565980908,3.5,126.53,126.51,4.50769871]
[1764565981098,3.5,126.53,126.52,0.66]
[1764565981299,8.80994492,126.55,126.52,5.16769871]
[1764565981606,17.43764363,126.55,126.51,20.81656271]
[1764565981807,12.92994492,126.55,126.52,0.66]
[1764565981988,12.92994492,126.55,126.52,5.16769871]
[1764565982591,12.30994492,126.55,126.52,5.16769871]
[1764565983994,17.43764363,126.55,126.52,0.66]
[1764565984200,17.43764363,126.55,126.51,28.72066485]
[1764565984511,17.43764363,126.55,126.51,29.38066485]
[1764565984693,17.43764363,126.55,126.51,16.308864]
[1764565984694,0.62,126.54,126.51,16.308864]
[1764565984897,25.33998581,126.55,126.51,0.66]
[1764565985211,25.33998581,126.55,126.5,13.07266972]
[1764565985212,5.12769871,126.54,126.5,13.07266972]
[1764565985439,5.12769871,126.54,126.5,12.41266972]
[1764565985807,0.62,126.54,126.51,0.66]
[1764565986005,8.52267768,126.54,126.51,0.66]
[1764565986207,7.90267768,126.54,126.51,5.16769871]
[1764565986393,7.90267768,126.54,126.51,7.46769871]
[1764565986586,7.90267768,126.54,126.51,2.96]
[1764565986788,7.90267768,126.54,126.51,7.46769871]
[1764565987215,17.43764363,126.55,126.52,5.16769871]
[1764565987216,20.21210157,126.55,126.52,5.16769871]
[1764565987408,20.21210157,126.55,126.53,4.50769871]
[1764565988018,20.21210157,126.55,126.52,5.16769871]
[1764565988414,3.5,126.55,126.53,4.50769871]
[1764565988604,7.90082613,126.57,126.54,4.50769871]
[1764565988792,3.5,126.57,126.55,4.50769871]
[1764565988996,3.5,126.57,126.56,0.66]
[1764565989497,3.5,126.57,126.51,0.66]
[1764565989498,16.71133556,126.56,126.51,0.66]
[1764565989692,8.80994492,126.54,126.51,0.66]
[1764565989893,12.30994492,126.54,126.51,0.66]
[1764565990413,20.21314881,126.54,126.51,0.66]
[1764565990608,25.34084752,126.54,126.49,21.47656271]
[1764565990789,25.34084752,126.54,126.49,20.81656271]
[1764565990990,25.34084752,126.54,126.5,0.66]
[1764565991792,8.80994492,126.52,126.49,16.308864]
[1764565991997,3.5,126.51,126.48,0.66]
[1764565992517,15.91261808,126.51,126.48,0.66]
[1764565993218,3.5,126.51,126.48,0.66]
[1764565993390,11.40453929,126.51,126.48,0.66]
[1764565994220,15.912238,126.51,126.48,0.66]
[1764565994419,11.40453929,126.51,126.48,0.66]
[1764565994911,16.532238,126.51,126.48,0.66]
[1764565995918,15.912238,126.51,126.48,2.96]
[1764565996301,16.532238,126.51,126.48,2.96]
[1764565996618,4.50769871,126.5,126.48,2.3]
[1764565997521,15.912238,126.51,126.48,2.96]
[1764565998496,4.50769871,126.49,126.48,2.3]
[1764565998697,4.50769871,126.49,126.46,16.308864]
[1764565998698,8.80994492,126.48,126.46,16.308864]
[1764565998898,4.50769871,126.47,126.45,2.96]
[1764565999111,4.50769871,126.47,126.44,0.66]
[1764565999708,3.5,126.48,126.44,7.46769871]
[1764565999930,3.5,126.5,126.47,20.81656271]